[Event "December 5 Late 2023"]
[Site "https://www.chess.com"]
[Date "2023.12.05"]
[Round "8"]
[White "Shapiro, Daniel"]
[Black "Joubert, Dantelle"]
[Result "1-0"]
[Board "119"]
[TimeControl "180+1"]
[WhiteFideId "2001780"]
[BlackFideId "14310813"]
[WhiteElo "2289"]
[BlackElo "2151"]
[WhiteTeam "USA"]
[BlackTeam "RSA"]
[WhiteClock "0:00:32"]
[BlackClock "0:00:12"]

1. d4 {[%clk 0:03:00]}  d5 {[%clk 0:02:58]} 2. c4 {[%clk 0:02:59]}  c6 {[%clk 0:02:58]} 3. Nf3 {[%clk 0:02:59]}  Nf6 {[%clk 0:02:58]} 4. Qb3 {[%clk 0:02:59]}  Qb6 {[%clk 0:02:49]} 5. Nc3 {[%clk 0:02:57]}  e6 {[%clk 0:02:47]} 6. g3 {[%clk 0:02:54]}  Be7 {[%clk 0:02:40]} 7. Bg2 {[%clk 0:02:54]}  O-O {[%clk 0:02:40]} 8. O-O {[%clk 0:02:55]}  Nbd7 {[%clk 0:02:38]} 9. Rd1 {[%clk 0:02:36]}  Re8 {[%clk 0:02:16]} 10. Qc2 {[%clk 0:02:13]}  dxc4 {[%clk 0:02:11]} 11. e4 {[%clk 0:02:01]}  Qd8 {[%clk 0:02:01]} 12. a4 {[%clk 0:02:01]}  Bb4 {[%clk 0:01:53]} 13. Bf4 {[%clk 0:01:59]}  Bxc3 {[%clk 0:01:52]} 14. bxc3 {[%clk 0:01:58]}  b5 {[%clk 0:01:51]} 15. Bd6 {[%clk 0:01:39]}  Bb7 {[%clk 0:01:48]} 16. Ne5 {[%clk 0:01:34]}  Nxe5 {[%clk 0:01:38]} 17. dxe5 {[%clk 0:01:34]}  Nd7 {[%clk 0:01:37]} 18. a5 {[%clk 0:01:26]}  a6 {[%clk 0:01:34]} 19. Qd2 {[%clk 0:01:15]}  Qc8 {[%clk 0:01:32]} 20. Qg5 {[%clk 0:01:08]}  Nf8 {[%clk 0:01:22]} 21. h4 {[%clk 0:01:01]}  h6 {[%clk 0:01:20]} 22. Qe3 {[%clk 0:00:56]}  Ng6 {[%clk 0:01:09]} 23. h5 {[%clk 0:00:52]}  Nf8 {[%clk 0:01:02]} 24. f4 {[%clk 0:00:48]}  Rd8 {[%clk 0:00:37]} 25. g4 {[%clk 0:00:48]}  Rd7 {[%clk 0:00:33]} 26. g5 {[%clk 0:00:47]}  hxg5 {[%clk 0:00:30]} 27. fxg5 {[%clk 0:00:47]}  Qd8 {[%clk 0:00:28]} 28. Rf1 {[%clk 0:00:44]}  Nh7 {[%clk 0:00:26]} 29. g6 {[%clk 0:00:42]}  fxg6 {[%clk 0:00:21]} 30. hxg6 {[%clk 0:00:43]}  Ng5 {[%clk 0:00:20]} 31. Rf8+ {[%clk 0:00:39]}  Qxf8 {[%clk 0:00:18]} 32. Bxf8 {[%clk 0:00:39]}  Rxf8 {[%clk 0:00:17]} 33. Qxg5 {[%clk 0:00:40]}  c5 {[%clk 0:00:16]} 34. Bh3 {[%clk 0:00:38]}  Re8 {[%clk 0:00:13]} 35. Qh5 {[%clk 0:00:38]}  Kf8 {[%clk 0:00:12]} 36. Rf1+ {[%clk 0:00:32]}  Ke7 {[%clk 0:00:12]} 37. Qg5# {[%clk 0:00:32]} 1-0

[Event "December 5 Late 2023"]
[Site "https://www.chess.com"]
[Date "2023.12.05"]
[Round "8"]
[White "Kujawski, Adam"]
[Black "Jesusesmifuerza"]
[Result "0-1"]
[Board "120"]
[TimeControl "180+1"]
[WhiteFideId "1100920"]
[WhiteElo "2286"]
[BlackElo "2132"]
[WhiteTeam "POL"]
[WhiteClock "0:00:01"]
[BlackClock "0:00:11"]

1. d4 {[%clk 0:02:57]}  d5 {[%clk 0:02:59]} 2. Bf4 {[%clk 0:02:56]}  Nf6 {[%clk 0:03:00]} 3. e3 {[%clk 0:02:55]}  e6 {[%clk 0:03:01]} 4. Nd2 {[%clk 0:02:45]}  Bd6 {[%clk 0:03:00]} 5. Bxd6 {[%clk 0:02:40]}  cxd6 {[%clk 0:03:01]} 6. Ngf3 {[%clk 0:02:21]}  O-O {[%clk 0:03:00]} 7. Be2 {[%clk 0:02:20]}  Re8 {[%clk 0:03:01]} 8. c4 {[%clk 0:02:10]}  e5 {[%clk 0:02:48]} 9. cxd5 {[%clk 0:01:47]}  Nxd5 {[%clk 0:02:47]} 10. Qb3 {[%clk 0:01:19]}  Nb6 {[%clk 0:02:37]} 11. d5 {[%clk 0:01:06]}  N8d7 {[%clk 0:02:34]} 12. e4 {[%clk 0:01:01]}  Nc5 {[%clk 0:02:29]} 13. Qe3 {[%clk 0:01:01]}  f5 {[%clk 0:02:28]} 14. exf5 {[%clk 0:00:56]}  Bxf5 {[%clk 0:02:26]} 15. O-O {[%clk 0:00:47]}  Qf6 {[%clk 0:02:16]} 16. Bc4 {[%clk 0:00:39]}  Rac8 {[%clk 0:02:05]} 17. b4 {[%clk 0:00:36]}  Nxc4 {[%clk 0:01:56]} 18. Nxc4 {[%clk 0:00:35]}  Ne4 {[%clk 0:01:49]} 19. Rfc1 {[%clk 0:00:33]}  h6 {[%clk 0:01:35]} 20. Qxa7 {[%clk 0:00:29]}  Bg4 {[%clk 0:01:27]} 21. Qe3 {[%clk 0:00:25]}  Bxf3 {[%clk 0:01:24]} 22. Qxf3 {[%clk 0:00:24]}  Qg6 {[%clk 0:01:23]} 23. Ne3 {[%clk 0:00:17]}  Rxc1+ {[%clk 0:01:18]} 24. Rxc1 {[%clk 0:00:17]}  Rf8 {[%clk 0:01:19]} 25. Qh3 {[%clk 0:00:13]}  Rxf2 {[%clk 0:00:58]} 26. Qe6+ {[%clk 0:00:13]}  Qf7 {[%clk 0:00:57]} 27. Rc8+ {[%clk 0:00:11]}  Kh7 {[%clk 0:00:56]} 28. Qxf7 {[%clk 0:00:10]}  Rxf7 {[%clk 0:00:57]} 29. Nc4 {[%clk 0:00:09]}  b5 {[%clk 0:00:55]} 30. Na5 {[%clk 0:00:08]}  Nd2 {[%clk 0:00:51]} 31. h3 {[%clk 0:00:05]}  Ne4 {[%clk 0:00:17]} 32. Rd8 {[%clk 0:00:04]}  h5 {[%clk 0:00:16]} 33. Nb3 {[%clk 0:00:03]}  h4 {[%clk 0:00:15]} 34. Rc8 {[%clk 0:00:01]}  Ng3 {[%clk 0:00:13]} 35. Rc1 {[%clk 0:00:01]}  Ne2+ {[%clk 0:00:12]} 36. Kh2 {[%clk 0:00:01]}  Nxc1 {[%clk 0:00:11]} 37. Na5 {[%clk 0:00:01]} 0-1

[Event "December 5 Late 2023"]
[Site "https://www.chess.com"]
[Date "2023.12.05"]
[Round "8"]
[White "De Souza, Cristiano Gomes"]
[Black "Oliveira, Tiago Batista"]
[Result "1-0"]
[Board "122"]
[TimeControl "180+1"]
[WhiteFideId "2151758"]
[BlackFideId "2108291"]
[WhiteElo "2228"]
[BlackElo "2098"]
[WhiteTeam "BRA"]
[BlackTeam "BRA"]
[WhiteClock "0:00:16"]
[BlackClock "0:00:02"]

1. d4 {[%clk 0:01:08]}  Nf6 {[%clk 0:02:57]} 2. c4 {[%clk 0:01:06]}  g6 {[%clk 0:02:57]} 3. Nf3 {[%clk 0:01:07]}  Bg7 {[%clk 0:02:56]} 4. Nc3 {[%clk 0:01:07]}  d5 {[%clk 0:02:56]} 5. Bf4 {[%clk 0:01:07]}  O-O {[%clk 0:02:48]} 6. e3 {[%clk 0:01:07]}  c5 {[%clk 0:02:47]} 7. dxc5 {[%clk 0:01:07]}  Qa5 {[%clk 0:02:45]} 8. Rc1 {[%clk 0:01:07]}  Ne4 {[%clk 0:02:30]} 9. cxd5 {[%clk 0:01:06]}  Nxc3 {[%clk 0:02:29]} 10. bxc3 {[%clk 0:01:07]}  Bxc3+ {[%clk 0:02:28]} 11. Nd2 {[%clk 0:01:06]}  Rd8 {[%clk 0:02:11]} 12. e4 {[%clk 0:01:02]}  Qxc5 {[%clk 0:01:41]} 13. Qc2 {[%clk 0:01:00]}  Bxd2+ {[%clk 0:01:39]} 14. Qxd2 {[%clk 0:01:01]}  Qa3 {[%clk 0:01:16]} 15. Be5 {[%clk 0:00:55]}  Nc6 {[%clk 0:01:11]} 16. Ba1 {[%clk 0:00:51]}  Qb4 {[%clk 0:00:49]} 17. Qxb4 {[%clk 0:00:35]}  Nxb4 {[%clk 0:00:49]} 18. a3 {[%clk 0:00:35]}  Na6 {[%clk 0:00:42]} 19. Be2 {[%clk 0:00:19]}  b6 {[%clk 0:00:42]} 20. O-O {[%clk 0:00:19]}  Nc5 {[%clk 0:00:42]} 21. f3 {[%clk 0:00:18]}  Ba6 {[%clk 0:00:41]} 22. Bxa6 {[%clk 0:00:16]}  Nxa6 {[%clk 0:00:41]} 23. Be5 {[%clk 0:00:16]}  Rac8 {[%clk 0:00:41]} 24. Kf2 {[%clk 0:00:16]}  f6 {[%clk 0:00:39]} 25. Bd4 {[%clk 0:00:16]}  Nc5 {[%clk 0:00:36]} 26. Bxc5 {[%clk 0:00:16]}  Rxc5 {[%clk 0:00:35]} 27. Rxc5 {[%clk 0:00:16]}  bxc5 {[%clk 0:00:36]} 28. Rc1 {[%clk 0:00:15]}  Rb8 {[%clk 0:00:36]} 29. Rxc5 {[%clk 0:00:13]}  Rb2+ {[%clk 0:00:34]} 30. Kg3 {[%clk 0:00:13]}  h5 {[%clk 0:00:30]} 31. Ra5 {[%clk 0:00:13]}  Rb7 {[%clk 0:00:22]} 32. Kf4 {[%clk 0:00:13]}  Kf7 {[%clk 0:00:22]} 33. g3 {[%clk 0:00:13]}  Ke8 {[%clk 0:00:18]} 34. h4 {[%clk 0:00:13]}  Kd7 {[%clk 0:00:18]} 35. g4 {[%clk 0:00:13]}  hxg4 {[%clk 0:00:17]} 36. fxg4 {[%clk 0:00:14]}  Kc7 {[%clk 0:00:17]} 37. h5 {[%clk 0:00:14]}  Kb6 {[%clk 0:00:15]} 38. Ra4 {[%clk 0:00:14]}  a5 {[%clk 0:00:11]} 39. Rc4 {[%clk 0:00:12]}  gxh5 {[%clk 0:00:10]} 40. gxh5 {[%clk 0:00:12]}  Rb8 {[%clk 0:00:10]} 41. Rc1 {[%clk 0:00:12]}  Rh8 {[%clk 0:00:10]} 42. Kg4 {[%clk 0:00:12]}  Kb5 {[%clk 0:00:10]} 43. Rb1+ {[%clk 0:00:12]}  Ka4 {[%clk 0:00:10]} 44. Rb7 {[%clk 0:00:12]}  Kxa3 {[%clk 0:00:10]} 45. Rxe7 {[%clk 0:00:12]}  a4 {[%clk 0:00:09]} 46. Ra7 {[%clk 0:00:11]}  Kb3 {[%clk 0:00:09]} 47. Kf5 {[%clk 0:00:12]}  a3 {[%clk 0:00:09]} 48. Kxf6 {[%clk 0:00:13]}  Rxh5 {[%clk 0:00:09]} 49. e5 {[%clk 0:00:13]}  Rh1 {[%clk 0:00:08]} 50. Rxa3+ {[%clk 0:00:13]}  Kxa3 {[%clk 0:00:08]} 51. e6 {[%clk 0:00:14]}  Rf1+ {[%clk 0:00:07]} 52. Ke7 {[%clk 0:00:14]}  Kb4 {[%clk 0:00:08]} 53. d6 {[%clk 0:00:15]}  Kc5 {[%clk 0:00:07]} 54. d7 {[%clk 0:00:16]}  Rd1 {[%clk 0:00:02]} 55. d8=Q {[%clk 0:00:16]} 1-0

[Event "December 5 Late 2023"]
[Site "https://www.chess.com"]
[Date "2023.12.05"]
[Round "8"]
[White "Cornelison, Paul"]
[Black "Clawitter, Craig"]
[Result "0-1"]
[Board "123"]
[TimeControl "180+1"]
[WhiteFideId "2004186"]
[BlackFideId "2023105"]
[WhiteElo "1930"]
[BlackElo "2222"]
[WhiteTeam "USA"]
[BlackTeam "USA"]
[WhiteClock "0:00:00"]
[BlackClock "0:00:53"]

1. e4 {[%clk 0:02:55]}  e6 {[%clk 0:02:59]} 2. d4 {[%clk 0:02:54]}  d5 {[%clk 0:03:00]} 3. Nc3 {[%clk 0:02:53]}  Bb4 {[%clk 0:02:59]} 4. e5 {[%clk 0:02:52]}  c5 {[%clk 0:03:00]} 5. Qg4 {[%clk 0:02:44]}  Ne7 {[%clk 0:02:57]} 6. Bd2 {[%clk 0:02:40]}  O-O {[%clk 0:02:46]} 7. Nf3 {[%clk 0:02:27]}  Nbc6 {[%clk 0:02:23]} 8. Bd3 {[%clk 0:02:16]}  cxd4 {[%clk 0:02:17]} 9. Bxh7+ {[%clk 0:02:10]}  Kxh7 {[%clk 0:02:08]} 10. Ng5+ {[%clk 0:02:09]}  Kg8 {[%clk 0:01:56]} 11. Qh5 {[%clk 0:02:05]}  Re8 {[%clk 0:01:48]} 12. Qxf7+ {[%clk 0:01:17]}  Kh8 {[%clk 0:01:46]} 13. Qh5+ {[%clk 0:01:18]}  Kg8 {[%clk 0:01:46]} 14. Qh7+ {[%clk 0:01:16]}  Kf8 {[%clk 0:01:46]} 15. Qh8+ {[%clk 0:01:14]}  Ng8 {[%clk 0:01:44]} 16. Qh5 {[%clk 0:00:18]}  Qd7 {[%clk 0:01:11]} 17. Nh7+ {[%clk 0:00:16]}  Ke7 {[%clk 0:01:10]} 18. Bg5+ {[%clk 0:00:15]}  Nf6 {[%clk 0:01:08]} 19. exf6+ {[%clk 0:00:13]}  gxf6 {[%clk 0:01:03]} 20. Nxf6 {[%clk 0:00:13]}  dxc3 {[%clk 0:01:01]} 21. Nxe8+ {[%clk 0:00:03]}  Kf8 {[%clk 0:00:54]} 22. Qh8+ {[%clk 0:00:00]}  Kf7 {[%clk 0:00:53]} 0-1

[Event "December 5 Late 2023"]
[Site "https://www.chess.com"]
[Date "2023.12.05"]
[Round "8"]
[White "Lohani, Sujana"]
[Black "Novikova, Margarita"]
[Result "0-1"]
[Board "127"]
[TimeControl "180+1"]
[WhiteFideId "12311987"]
[BlackFideId "14109689"]
[WhiteElo "2012"]
[BlackElo "2118"]
[WhiteTeam "NEP"]
[BlackTeam "GER"]
[WhiteClock "0:00:00"]
[BlackClock "0:00:08"]

1. d4 {[%clk 0:03:00]}  e5 {[%clk 0:02:58]} 2. dxe5 {[%clk 0:03:00]}  Nc6 {[%clk 0:02:58]} 3. Nf3 {[%clk 0:03:00]}  Qe7 {[%clk 0:02:58]} 4. Bg5 {[%clk 0:02:59]}  Qb4+ {[%clk 0:02:58]} 5. Bd2 {[%clk 0:02:59]}  Qxb2 {[%clk 0:02:58]} 6. Nc3 {[%clk 0:02:59]}  Nb4 {[%clk 0:02:57]} 7. Nd4 {[%clk 0:02:59]}  Bc5 {[%clk 0:02:44]} 8. Rb1 {[%clk 0:02:58]}  Qa3 {[%clk 0:02:41]} 9. Rb3 {[%clk 0:02:57]}  Qa6 {[%clk 0:02:34]} 10. e4 {[%clk 0:02:52]}  Qg6 {[%clk 0:02:31]} 11. Ndb5 {[%clk 0:02:36]}  Na6 {[%clk 0:02:29]} 12. Qf3 {[%clk 0:01:54]}  Ne7 {[%clk 0:02:15]} 13. Nd5 {[%clk 0:01:48]}  Bb6 {[%clk 0:02:08]} 14. Nxb6 {[%clk 0:01:46]}  axb6 {[%clk 0:02:06]} 15. Bd3 {[%clk 0:01:42]}  O-O {[%clk 0:01:57]} 16. O-O {[%clk 0:01:42]}  d6 {[%clk 0:01:37]} 17. exd6 {[%clk 0:01:37]}  cxd6 {[%clk 0:01:38]} 18. e5 {[%clk 0:01:35]}  Qg4 {[%clk 0:01:15]} 19. Qxg4 {[%clk 0:01:27]}  Bxg4 {[%clk 0:01:14]} 20. Nxd6 {[%clk 0:01:24]}  Nd5 {[%clk 0:01:04]} 21. Be4 {[%clk 0:01:20]}  Be6 {[%clk 0:01:00]} 22. Bxd5 {[%clk 0:01:16]}  Bxd5 {[%clk 0:01:00]} 23. Rxb6 {[%clk 0:01:16]}  Nc5 {[%clk 0:00:34]} 24. Bb4 {[%clk 0:01:11]}  Ne6 {[%clk 0:00:25]} 25. Nxb7 {[%clk 0:01:05]}  Rfc8 {[%clk 0:00:24]} 26. Nd6 {[%clk 0:01:01]}  Rxc2 {[%clk 0:00:24]} 27. a3 {[%clk 0:00:59]}  Nf4 {[%clk 0:00:22]} 28. Nf5 {[%clk 0:00:50]}  Bxg2 {[%clk 0:00:18]} 29. Ne7+ {[%clk 0:00:49]}  Kh8 {[%clk 0:00:19]} 30. Rb1 {[%clk 0:00:45]}  h5 {[%clk 0:00:18]} 31. Bd6 {[%clk 0:00:43]}  Be4 {[%clk 0:00:17]} 32. Rb8+ {[%clk 0:00:42]}  Rxb8 {[%clk 0:00:17]} 33. Rxb8+ {[%clk 0:00:41]}  Kh7 {[%clk 0:00:17]} 34. Rb1 {[%clk 0:00:40]}  Nh3+ {[%clk 0:00:16]} 35. Kf1 {[%clk 0:00:39]}  Rxf2+ {[%clk 0:00:16]} 36. Ke1 {[%clk 0:00:39]}  Rxh2 {[%clk 0:00:16]} 37. Rb4 {[%clk 0:00:35]}  Bf3 {[%clk 0:00:14]} 38. Rb3 {[%clk 0:00:29]}  Bg4 {[%clk 0:00:13]} 39. e6 {[%clk 0:00:22]}  Re2+ {[%clk 0:00:13]} 40. Kf1 {[%clk 0:00:21]}  Rxe6 {[%clk 0:00:13]} 41. Bb4 {[%clk 0:00:20]}  Ng5 {[%clk 0:00:12]} 42. Rg3 {[%clk 0:00:16]}  Rf6+ {[%clk 0:00:12]} 43. Kg2 {[%clk 0:00:15]}  Ne4 {[%clk 0:00:13]} 44. Re3 {[%clk 0:00:13]}  Rf2+ {[%clk 0:00:12]} 45. Kg1 {[%clk 0:00:00]}  f5 {[%clk 0:00:08]} 0-1

[Event "December 5 Late 2023"]
[Site "https://www.chess.com"]
[Date "2023.12.05"]
[Round "8"]
[White "Yushko, Olga"]
[Black "Winkels, Marcel"]
[Result "0-1"]
[Board "128"]
[TimeControl "180+1"]
[WhiteFideId "14114500"]
[BlackFideId "1003887"]
[WhiteElo "2109"]
[BlackElo "2001"]
[WhiteTeam "UKR"]
[BlackTeam "NED"]
[WhiteClock "0:00:11"]
[BlackClock "0:00:14"]

1. d4 {[%clk 0:02:59]}  Nf6 {[%clk 0:02:58]} 2. c4 {[%clk 0:02:58]}  g6 {[%clk 0:02:59]} 3. Nc3 {[%clk 0:02:58]}  d5 {[%clk 0:03:00]} 4. Nf3 {[%clk 0:02:58]}  Bg7 {[%clk 0:02:58]} 5. e3 {[%clk 0:02:58]}  O-O {[%clk 0:02:57]} 6. Be2 {[%clk 0:02:58]}  b6 {[%clk 0:02:58]} 7. O-O {[%clk 0:02:58]}  Bb7 {[%clk 0:02:58]} 8. Qc2 {[%clk 0:02:49]}  Nbd7 {[%clk 0:02:57]} 9. b4 {[%clk 0:02:43]}  a5 {[%clk 0:02:56]} 10. b5 {[%clk 0:02:41]}  Rc8 {[%clk 0:02:51]} 11. cxd5 {[%clk 0:02:34]}  Nxd5 {[%clk 0:02:50]} 12. Nxd5 {[%clk 0:02:33]}  Bxd5 {[%clk 0:02:49]} 13. a4 {[%clk 0:02:27]}  c5 {[%clk 0:02:48]} 14. bxc6 {[%clk 0:02:26]}  Bxc6 {[%clk 0:02:46]} 15. Qb3 {[%clk 0:02:24]}  Nf6 {[%clk 0:02:43]} 16. Ba3 {[%clk 0:02:20]}  Bd5 {[%clk 0:02:35]} 17. Qb5 {[%clk 0:02:15]}  Bc6 {[%clk 0:02:31]} 18. Qb3 {[%clk 0:02:14]}  Bd5 {[%clk 0:02:30]} 19. Qb2 {[%clk 0:02:12]}  Ne4 {[%clk 0:02:28]} 20. Rfc1 {[%clk 0:02:08]}  Rxc1+ {[%clk 0:01:45]} 21. Rxc1 {[%clk 0:02:04]}  Qd7 {[%clk 0:01:46]} 22. Qxb6 {[%clk 0:01:59]}  Qxa4 {[%clk 0:01:41]} 23. Bxe7 {[%clk 0:01:59]}  Re8 {[%clk 0:01:39]} 24. Bb5 {[%clk 0:01:39]}  Qb3 {[%clk 0:01:15]} 25. Bc5 {[%clk 0:01:07]}  Ra8 {[%clk 0:01:01]} 26. Ra1 {[%clk 0:00:47]}  Qb2 {[%clk 0:00:53]} 27. Rxa5 {[%clk 0:00:33]}  Qxf2+ {[%clk 0:00:50]} 28. Kh1 {[%clk 0:00:28]}  Rc8 {[%clk 0:00:23]} 29. Ra1 {[%clk 0:00:22]}  Qxe3 {[%clk 0:00:20]} 30. Bd7 {[%clk 0:00:16]}  Nf2+ {[%clk 0:00:18]} 31. Kg1 {[%clk 0:00:15]}  Nh3+ {[%clk 0:00:18]} 32. Kh1 {[%clk 0:00:15]}  Nf2+ {[%clk 0:00:18]} 33. Kg1 {[%clk 0:00:15]}  Nh3+ {[%clk 0:00:18]} 34. Kh1 {[%clk 0:00:15]}  Qg1+ {[%clk 0:00:16]} 35. Nxg1 {[%clk 0:00:11]}  Nf2# {[%clk 0:00:14]} 0-1

[Event "December 5 Late 2023"]
[Site "https://www.chess.com"]
[Date "2023.12.05"]
[Round "8"]
[White "Negron Lizarazo, Juan Sebastian"]
[Black "Boggiano Pereira, Miguel A."]
[Result "1-0"]
[Board "129"]
[TimeControl "180+1"]
[WhiteFideId "3936910"]
[BlackFideId "3102750"]
[WhiteElo "2085"]
[BlackElo "1963"]
[WhiteTeam "COL"]
[BlackTeam "PUR"]
[WhiteClock "0:00:14"]
[BlackClock "0:00:00"]

1. e4 {[%clk 0:02:37]}  c5 {[%clk 0:02:58]} 2. Nc3 {[%clk 0:02:36]}  Nc6 {[%clk 0:02:58]} 3. g3 {[%clk 0:02:36]}  g6 {[%clk 0:02:57]} 4. Bg2 {[%clk 0:02:36]}  Bg7 {[%clk 0:02:57]} 5. d3 {[%clk 0:02:37]}  d6 {[%clk 0:02:56]} 6. Be3 {[%clk 0:02:36]}  Rb8 {[%clk 0:02:56]} 7. Qd2 {[%clk 0:02:36]}  b5 {[%clk 0:02:54]} 8. Rb1 {[%clk 0:02:34]}  b4 {[%clk 0:02:54]} 9. Nce2 {[%clk 0:02:33]}  h5 {[%clk 0:02:50]} 10. h3 {[%clk 0:02:31]}  Nf6 {[%clk 0:02:37]} 11. Nf3 {[%clk 0:02:19]}  Nd7 {[%clk 0:02:32]} 12. O-O {[%clk 0:02:10]}  a5 {[%clk 0:02:08]} 13. Nh2 {[%clk 0:02:05]}  Nb6 {[%clk 0:01:57]} 14. f4 {[%clk 0:01:52]}  Ba6 {[%clk 0:01:43]} 15. f5 {[%clk 0:01:43]}  c4 {[%clk 0:01:32]} 16. fxg6 {[%clk 0:01:34]}  fxg6 {[%clk 0:01:30]} 17. Nf4 {[%clk 0:01:30]}  Ne5 {[%clk 0:01:04]} 18. Ne6 {[%clk 0:01:16]}  Qc8 {[%clk 0:00:50]} 19. Nxg7+ {[%clk 0:01:14]}  Kd7 {[%clk 0:00:51]} 20. d4 {[%clk 0:01:11]}  c3 {[%clk 0:00:45]} 21. Qd1 {[%clk 0:00:47]}  Nec4 {[%clk 0:00:40]} 22. Bc1 {[%clk 0:00:36]}  Qg8 {[%clk 0:00:37]} 23. b3 {[%clk 0:00:22]}  Na3 {[%clk 0:00:25]} 24. Bxa3 {[%clk 0:00:21]}  Bxf1 {[%clk 0:00:21]} 25. Qxf1 {[%clk 0:00:20]}  bxa3 {[%clk 0:00:21]} 26. Qb5+ {[%clk 0:00:20]}  Kd8 {[%clk 0:00:13]} 27. Qxa5 {[%clk 0:00:18]}  Qxg7 {[%clk 0:00:12]} 28. Rd1 {[%clk 0:00:17]}  e6 {[%clk 0:00:04]} 29. Qxc3 {[%clk 0:00:17]}  Qc7 {[%clk 0:00:03]} 30. Qb4 {[%clk 0:00:17]}  Kd7 {[%clk 0:00:03]} 31. Qxa3 {[%clk 0:00:16]}  Ra8 {[%clk 0:00:02]} 32. Qb2 {[%clk 0:00:16]}  Rhf8 {[%clk 0:00:02]} 33. c4 {[%clk 0:00:15]}  Nc8 {[%clk 0:00:02]} 34. e5 {[%clk 0:00:16]}  d5 {[%clk 0:00:02]} 35. cxd5 {[%clk 0:00:15]}  exd5 {[%clk 0:00:02]} 36. Bxd5 {[%clk 0:00:15]}  Ra5 {[%clk 0:00:01]} 37. Bc4 {[%clk 0:00:15]}  Ne7 {[%clk 0:00:00]} 38. d5 {[%clk 0:00:14]} 1-0

[Event "December 5 Late 2023"]
[Site "https://www.chess.com"]
[Date "2023.12.05"]
[Round "8"]
[White "Vargas, Mauricio"]
[Black "th3d4rkness"]
[Result "0-1"]
[Board "132"]
[TimeControl "180+1"]
[WhiteFideId "4404572"]
[WhiteElo "1825"]
[BlackElo "2128"]
[WhiteTeam "COL"]
[WhiteClock "0:00:00"]
[BlackClock "0:01:21"]

1. e4 {[%clk 0:02:59]}  c5 {[%clk 0:02:59]} 2. Nc3 {[%clk 0:02:57]}  a6 {[%clk 0:02:58]} 3. f4 {[%clk 0:02:22]}  Nc6 {[%clk 0:02:53]} 4. Nf3 {[%clk 0:02:21]}  d6 {[%clk 0:02:54]} 5. Bc4 {[%clk 0:02:21]}  e6 {[%clk 0:02:48]} 6. O-O {[%clk 0:02:20]}  b5 {[%clk 0:02:48]} 7. Be2 {[%clk 0:02:17]}  Nf6 {[%clk 0:02:44]} 8. d3 {[%clk 0:02:16]}  Bb7 {[%clk 0:02:42]} 9. e5 {[%clk 0:02:06]}  Nd7 {[%clk 0:02:34]} 10. exd6 {[%clk 0:01:58]}  Bxd6 {[%clk 0:02:34]} 11. Ne4 {[%clk 0:01:58]}  Qc7 {[%clk 0:02:27]} 12. Nxd6+ {[%clk 0:01:29]}  Qxd6 {[%clk 0:02:27]} 13. Ng5 {[%clk 0:01:24]}  O-O {[%clk 0:02:20]} 14. Bf3 {[%clk 0:01:19]}  Qc7 {[%clk 0:02:09]} 15. Be4 {[%clk 0:01:14]}  Nf6 {[%clk 0:02:09]} 16. Qf3 {[%clk 0:00:59]}  h6 {[%clk 0:02:06]} 17. Nh3 {[%clk 0:00:42]}  Nd4 {[%clk 0:02:06]} 18. Qd1 {[%clk 0:00:17]}  Nxe4 {[%clk 0:02:05]} 19. dxe4 {[%clk 0:00:17]}  Bxe4 {[%clk 0:02:04]} 20. c3 {[%clk 0:00:16]}  Nf5 {[%clk 0:01:49]} 21. Qe1 {[%clk 0:00:16]}  Bb7 {[%clk 0:01:45]} 22. b3 {[%clk 0:00:13]}  Rfd8 {[%clk 0:01:41]} 23. c4 {[%clk 0:00:13]}  b4 {[%clk 0:01:36]} 24. Bb2 {[%clk 0:00:11]}  Rd3 {[%clk 0:01:24]} 25. Nf2 {[%clk 0:00:00]}  Rd7 {[%clk 0:01:21]} 0-1

[Event "December 5 Late 2023"]
[Site "https://www.chess.com"]
[Date "2023.12.05"]
[Round "8"]
[White "Smirnov, Timofey"]
[Black "Khater, Sherif"]
[Result "0-1"]
[Board "134"]
[TimeControl "180+1"]
[WhiteFideId "24176427"]
[BlackFideId "2034280"]
[WhiteElo "2032"]
[BlackElo "2605"]
[WhiteTeam "RUS"]
[BlackTeam "USA"]
[WhiteClock "0:00:29"]
[BlackClock "0:01:41"]

1. d4 {[%clk 0:03:00]}  e6 {[%clk 0:02:58]} 2. Bf4 {[%clk 0:03:00]}  d6 {[%clk 0:02:58]} 3. e3 {[%clk 0:03:00]}  Ne7 {[%clk 0:02:58]} 4. Nd2 {[%clk 0:02:58]}  h6 {[%clk 0:02:57]} 5. h3 {[%clk 0:02:58]}  g5 {[%clk 0:02:56]} 6. Bh2 {[%clk 0:02:58]}  Bg7 {[%clk 0:02:56]} 7. Ngf3 {[%clk 0:02:57]}  Ng6 {[%clk 0:02:55]} 8. Bd3 {[%clk 0:02:53]}  Nd7 {[%clk 0:02:55]} 9. c3 {[%clk 0:02:49]}  O-O {[%clk 0:02:52]} 10. Qc2 {[%clk 0:02:49]}  Ne7 {[%clk 0:02:45]} 11. g4 {[%clk 0:02:34]}  Nd5 {[%clk 0:02:39]} 12. O-O-O {[%clk 0:02:26]}  a5 {[%clk 0:02:38]} 13. e4 {[%clk 0:02:16]}  N5b6 {[%clk 0:02:36]} 14. Bg3 {[%clk 0:02:05]}  a4 {[%clk 0:02:32]} 15. a3 {[%clk 0:02:04]}  e5 {[%clk 0:02:30]} 16. d5 {[%clk 0:01:57]}  Nc5 {[%clk 0:02:26]} 17. h4 {[%clk 0:01:55]}  f6 {[%clk 0:02:26]} 18. hxg5 {[%clk 0:01:47]}  fxg5 {[%clk 0:02:25]} 19. Nc4 {[%clk 0:01:26]}  Bxg4 {[%clk 0:02:18]} 20. Nfd2 {[%clk 0:01:04]}  Bxd1 {[%clk 0:02:14]} 21. Rxd1 {[%clk 0:01:03]}  Nxc4 {[%clk 0:02:14]} 22. Nxc4 {[%clk 0:00:59]}  Qe8 {[%clk 0:02:06]} 23. Qe2 {[%clk 0:00:55]}  Qg6 {[%clk 0:02:02]} 24. Bb1 {[%clk 0:00:30]}  Rf7 {[%clk 0:01:48]} 25. Qg4 {[%clk 0:00:30]}  Raf8 {[%clk 0:01:46]} 26. Ne3 {[%clk 0:00:29]}  Rxf2 {[%clk 0:01:41]} 27. Bxf2 {[%clk 0:00:28]}  Rxf2 {[%clk 0:01:42]} 28. Nf5 {[%clk 0:00:29]}  Nb3# {[%clk 0:01:41]} 0-1